bitfinex-derivatives/quotes_ETHF0:USTF0_20250114
["timestamp","ask_amount","ask_price","bid_price","bid_amount"]
[1736872152175,3.36329552,3196.2,3196.1,0.31301]
[1736872152468,3.36329552,3196.3,3195.8,44.0078]
[1736872152667,3.36329552,3196.2,3195.8,44.0078]
[1736872152863,0.31301,3196.2,3196.0,0.31303]
[1736872153058,1.333,3196.4,3195.9,3.29675016]
[1736872153367,0.31301,3196.2,3195.8,44.0078]
[1736872153567,3.37820639,3196.3,3195.8,44.0078]
[1736872153961,3.37820639,3196.3,3196.0,0.31302]
[1736872154364,0.31302,3196.1,3196.0,0.31302]
[1736872154565,0.31301,3196.2,3196.1,0.31302]
[1736872154968,3.37820639,3196.3,3195.8,44.0078]
[1736872155167,0.31301,3196.2,3196.0,0.31302]
[1736872155361,3.37820639,3196.3,3195.8,44.0078]
[1736872155561,0.31304,3195.9,3195.8,40.8]
[1736872155967,3.50844823,3195.9,3195.8,41.11305]
[1736872156271,3.82148823,3195.9,3195.8,41.11305]
[1736872156466,3.82148823,3195.9,3195.8,41.50455981]
[1736872157376,4.5408,3196.4,3195.8,44.39930981]
[1736872157573,0.31303,3196.0,3195.9,0.70453981]
[1736872158075,3.62617045,3196.0,3195.9,0.70453981]
[1736872158270,3.31314045,3196.0,3195.9,0.70453981]
[1736872158575,0.31303,3196.0,3195.9,0.39150981]
[1736872158973,3.6599212,3196.0,3195.9,0.39150981]
[1736872159285,0.31303,3196.0,3195.9,0.39150981]
[1736872159481,3.89749992,3196.0,3195.9,0.39150981]
[1736872159776,3.58446992,3196.0,3195.9,0.3915121]
[1736872159976,3.89749992,3196.0,3195.9,0.3915121]
[1736872160178,0.31303,3196.0,3195.9,0.3915121]
[1736872160372,3.74784457,3196.0,3195.9,0.3915121]
[1736872160577,3.74784457,3196.0,3195.9,0.7045521]
[1736872160776,3.74784457,3196.0,3195.9,1.01792495]
[1736872161077,3.74784457,3196.0,3195.9,1.01791609]
[1736872161272,3.43481457,3196.0,3195.9,1.33095609]
[1736872161472,4.5408,3196.8,3195.9,6.01791609]
[1736872161674,0.31299,3196.4,3196.3,0.31299]
[1736872161879,0.31299,3196.4,3196.3,1.33090609]
[1736872162475,3.60542359,3196.4,3196.3,1.33090609]
[1736872163774,3.60542359,3196.4,3196.3,1.33075842]
[1736872164182,3.60042055,3196.4,3196.3,1.33075366]
[1736872164384,3.60042055,3196.4,3196.3,1.01776366]
[1736872164886,3.29243359,3196.4,3196.3,1.33076366]
[1736872165082,3.2078,3196.8,3196.3,1.01776366]
[1736872165378,1.333,3197.2,3196.4,1.21815721]
[1736872165574,0.78231,3197.1,3196.5,1.01776366]
[1736872165770,3.6277953,3196.7,3196.6,1.01768561]
[1736872165978,0.31296,3196.7,3196.6,1.01768561]
[1736872166175,3.74355482,3196.7,3196.6,1.01768561]
[1736872166378,3.74355482,3196.7,3196.6,41.81768561]
[1736872166677,3.74355482,3196.7,3196.6,41.19141754]
[1736872167077,3.74355482,3196.7,3196.6,0.39141754]
[1736872167485,3.74355482,3196.7,3196.6,41.19141754]
[1736872167687,3.74355482,3196.7,3196.6,41.38685831]
[1736872167878,3.43059482,3196.7,3196.6,41.49889047]
[1736872168085,0.31295,3196.9,3196.8,0.31295]
[1736872168281,0.31295,3196.9,3196.8,0.89980167]
[1736872168685,0.31295,3196.9,3196.8,1.07611763]
[1736872169485,3.6687206,3196.9,3196.8,1.07611763]
[1736872169673,3.6687206,3196.9,3196.8,0.69019716]
[1736872169877,1.64593,3197.1,3197.0,0.31293]
[1736872170081,1.64593,3197.1,3197.0,0.58607649]
[1736872170285,5.08100505,3197.1,3197.0,1.07534245]
[1736872170479,5.08100505,3197.1,3197.0,0.87673482]
[1736872170881,5.08100505,3197.1,3197.0,0.38746886]
[1736872171089,5.08100505,3197.1,3197.0,0.58605358]
[1736872171784,5.08099505,3197.1,3197.0,0.58598139]
[1736872172184,4.76807505,3197.1,3196.8,0.31294]
[1736872172385,4.76807505,3197.1,3196.9,0.58608678]
[1736872172584,5.08099505,3197.1,3197.0,0.58605325]
[1736872173681,5.08099505,3197.1,3197.0,0.38743911]
[1736872175790,0.31294,3196.9,3196.8,0.31294]
[1736872175979,0.31294,3196.9,3196.8,0.51153111]
[1736872176179,3.75318596,3196.9,3196.8,0.51153111]
[1736872176381,3.44024596,3196.9,3196.8,0.51153111]
[1736872176587,3.75318596,3196.9,3196.8,0.51153111]
[1736872176987,3.44024596,3196.9,3196.8,0.51153111]
[1736872177490,3.75318596,3196.9,3196.8,0.19859111]
[1736872177987,0.31296,3196.8,3196.7,0.31295]
[1736872178186,0.31296,3196.8,3196.7,0.19854721]
[1736872178585,5.82325834,3196.9,3196.7,0.19854721]
[1736872178787,5.82325834,3196.9,3196.8,0.51146628]
[1736872178987,2.38301238,3196.9,3196.8,0.51146628]
[1736872179290,2.69595238,3196.9,3196.8,0.51146628]
[1736872179484,2.69595238,3196.9,3196.8,0.31295]
[1736872179680,2.38301238,3196.9,3196.8,0.31295]
[1736872179880,2.69595238,3196.9,3196.8,0.51145797]
[1736872180104,2.69595238,3196.9,3196.8,0.31295]
[1736872180683,2.38301238,3196.9,3196.8,0.51142587]
[1736872180889,3.57451858,3196.9,3196.8,1.02842587]
[1736872181692,3.57451858,3196.9,3196.8,6.02842587]
[1736872181889,3.57451858,3196.9,3196.8,1.0284115]
[1736872182090,2.41966101,3197.0,3196.8,0.1984615]
[1736872182286,3.4114191,3196.9,3196.6,40.8]
[1736872182485,0.31296,3196.7,3196.6,41.11296]
[1736872182788,0.5136,3196.9,3196.2,3.2078]
[1736872182986,0.313,3196.4,3196.3,0.51147381]
[1736872183380,0.313,3196.4,3196.3,0.31299]
[1736872183590,0.313,3196.4,3196.3,0.51149309]
[1736872183789,0.313,3196.4,3196.3,0.51148645]
[1736872184088,0.313,3196.4,3196.3,0.31299]
[1736872184291,0.313,3196.3,3196.2,6.25190227]
[1736872184496,0.313,3196.3,3196.2,3.2078]
[1736872184793,0.313,3196.3,3196.0,40.8]
[1736872184794,0.31302,3196.1,3196.0,40.8]
[1736872185195,3.83283849,3196.1,3196.0,40.8]
[1736872186591,6.56394076,3196.1,3196.0,40.8]
[1736872186785,13.24532269,3196.1,3196.0,40.8]
[1736872186994,10.51422042,3196.1,3196.0,40.8]
[1736872187395,10.51422042,3196.1,3196.0,41.11303]
[1736872187588,6.99440193,3196.1,3196.0,40.8]
[1736872187792,10.533504,3196.1,3196.0,40.8]
[1736872187997,10.533504,3196.1,3196.0,41.11303]
[1736872188396,10.533504,3196.1,3196.0,0.31303]
[1736872188591,10.533504,3196.1,3195.6,2.73110227]
[1736872188592,10.220484,3196.1,3195.6,2.73110227]
[1736872188795,0.31304,3195.9,3195.8,0.31304]
[1736872189098,3.6948784,3196.0,3195.9,0.31303]
[1736872189401,0.31303,3196.0,3195.9,41.11303]
[1736872189603,0.31303,3196.0,3195.9,40.8]
[1736872189895,0.31303,3196.0,3195.9,41.11304]
[1736872190892,3.915768,3196.0,3195.9,40.8]
[1736872192591,3.915768,3196.0,3195.0,3.2078]
[1736872192592,3.602738,3196.0,3195.0,3.2078]
[1736872192797,3.2078,3195.6,3195.0,3.2078]
[1736872193090,0.5373,3195.5,3195.1,40.8]
[1736872193292,0.31311,3195.2,3195.1,41.11311]
[1736872193490,0.3131,3195.3,3195.1,41.11311]
[1736872193700,4.35497124,3195.5,3195.1,40.8]
[1736872193701,7.28373998,3195.2,3195.1,40.8]
[1736872193900,7.59684998,3195.2,3195.1,40.8]
[1736872194294,14.28029432,3195.2,3195.1,40.8]
[1736872194493,14.28029432,3195.2,3194.2,2.73110227]
[1736872194494,13.96718432,3195.2,3194.2,2.73110227]
[1736872194798,13.96718432,3195.2,3193.1,7.34517149]
[1736872194799,0.31323,3194.0,3193.5,3.2078]
[1736872194996,0.80843,3193.9,3193.7,0.31325]
[1736872195195,0.31324,3193.8,3193.6,41.11326]
[1736872195498,0.31324,3193.8,3193.6,40.8]
[1736872195797,0.4952,3193.9,3193.8,0.31324]
[1736872195999,5.571,3194.3,3194.0,0.31322]
[1736872196000,8.8151125,3194.2,3194.0,0.31322]
[1736872196196,8.8151125,3194.2,3193.9,0.31323]
[1736872196500,0.31322,3194.1,3193.8,0.31324]
[1736872196700,0.31323,3194.0,3193.8,0.31324]
[1736872196902,0.31322,3194.1,3193.9,0.31323]
[1736872197200,3.2078,3194.3,3194.1,0.31321]
[1736872197401,3.521,3194.3,3194.1,0.31321]
[1736872197596,3.2078,3194.3,3194.1,0.31321]
[1736872197896,8.5019025,3194.7,3194.1,3.2078]
[1736872198199,9.8289025,3194.7,3194.5,0.31317]
[1736872198408,8.5019025,3194.7,3194.6,0.31316]
[1736872198993,0.80835,3194.8,3194.6,41.11316]
[1736872199390,3.52095,3194.7,3194.6,40.8]
[1736872199589,6.94344339,3194.7,3194.6,40.8]
[1736872201099,6.63029339,3194.7,3194.6,40.8]
[1736872201292,6.94344339,3194.7,3194.6,40.8]
[1736872201491,6.94344339,3194.7,3194.3,0.31319]
[1736872201694,0.5068,3194.6,3194.0,3.2078]
[1736872202206,3.5380364,3194.5,3194.1,40.8]
[1736872202406,0.3132,3194.2,3194.1,40.8]
[1736872203301,6.76331533,3194.2,3193.3,3.31641509]
[1736872203601,3.2078,3193.8,3193.1,3.2078]
[1736872203799,0.5329,3193.7,3193.4,40.8]
[1736872204397,0.5329,3193.7,3193.6,0.31326]
[1736872204602,0.31323,3194.0,3193.9,0.31323]
[1736872204799,1.328,3194.0,3193.9,0.31323]
[1736872204998,7.28373998,3194.2,3194.1,0.31321]
[1736872205193,7.28373998,3194.2,3193.6,3.82591509]
[1736872205399,7.28373998,3194.2,3194.1,0.31321]
[1736872205701,7.28373998,3194.2,3194.1,41.11321]
[1736872205911,8.0357857,3194.3,3194.2,0.3132]
[1736872206101,8.0357857,3194.3,3194.1,40.8]
[1736872206298,0.3132,3194.2,3194.1,41.11321]
[1736872206602,0.3132,3194.2,3194.1,40.8]
[1736872206811,0.8461,3194.2,3194.1,40.8]
[1736872207605,4.8279857,3194.2,3194.1,40.8]
[1736872207806,4.8279857,3194.2,3194.1,41.11321]
[1736872208010,5.1411857,3194.2,3194.1,41.11321]
[1736872208405,0.3132,3194.2,3194.1,41.11321]
[1736872208608,3.93168286,3194.3,3194.2,0.3132]
[1736872208810,3.61848286,3194.3,3194.2,0.3132]
[1736872209607,0.31318,3194.4,3194.2,0.3132]
[1736872209608,3.61848286,3194.4,3194.3,0.31319]
[1736872209910,4.8279857,3194.6,3194.3,6.52421509]
[1736872210109,4.50412225,3194.6,3194.5,0.31317]
[1736872210610,4.50412225,3194.6,3194.5,5.31317]
[1736872210810,4.50412225,3194.6,3194.5,46.11317]
[1736872211304,3.2078,3195.3,3194.8,0.78285]
[1736872211498,6.03498212,3195.5,3195.4,0.31309]
[1736872211699,6.34806212,3195.5,3195.4,0.31309]
[1736872211907,0.31309,3195.4,3195.3,0.31309]
[1736872212110,0.31309,3195.4,3195.3,41.11309]
[1736872212307,6.34806212,3195.5,3195.4,0.31309]
[1736872212605,0.31308,3195.5,3195.4,0.31309]
[1736872212803,0.5168,3195.6,3195.3,41.11309]
[1736872212804,0.31309,3195.4,3195.3,41.11309]
[1736872214211,0.31309,3195.4,3195.3,40.8]
[1736872214808,0.31315,3194.8,3194.3,0.78299]
[1736872215009,3.7246,3195.6,3195.5,0.31308]
[1736872215205,6.03498212,3195.9,3195.8,0.31305]
[1736872215507,2.68707312,3195.9,3195.8,3.62946509]
[1736872215711,3.2078,3196.6,3195.8,8.31641509]
[1736872215908,0.31299,3196.4,3196.3,0.313]
[1736872216112,0.31299,3196.4,3195.9,44.0078]
[1736872216311,0.31303,3196.0,3195.9,44.0078]
[1736872216716,0.31303,3196.0,3195.9,40.8]
[1736872217207,0.5065,3196.3,3195.9,40.8]
[1736872217416,0.31302,3196.1,3196.0,0.31302]
[1736872217802,0.31302,3196.1,3196.0,0.31303]
[1736872218002,1.327,3196.4,3195.9,40.8]
[1736872218201,3.2078,3196.6,3196.3,0.313]
[1736872218511,3.2078,3196.6,3196.2,6.52421509]
[1736872218811,0.31302,3196.1,3196.0,0.31302]
[1736872219006,3.46142138,3196.5,3195.9,40.8]
[1736872219211,0.31299,3196.4,3196.3,0.313]
[1736872219509,3.52077,3196.6,3196.5,0.31298]
[1736872220405,0.31299,3196.4,3196.3,0.313]
[1736872220610,3.2078,3196.6,3195.9,40.8]
[1736872220915,3.2078,3196.6,3195.8,3.52084]
[1736872220916,0.31304,3195.9,3195.8,3.52084]
[1736872221313,0.31301,3196.2,3196.1,0.31301]
[1736872221708,3.2078,3196.6,3195.8,3.2078]
[1736872221709,3.46112418,3196.3,3195.8,3.2078]
[1736872222022,0.31303,3196.1,3196.0,0.31302]
[1736872222209,3.46112418,3196.5,3195.9,40.8]
[1736872222210,3.99024,3196.6,3195.9,40.8]
[1736872222410,0.31303,3196.0,3195.9,40.8]
[1736872222608,0.31305,3195.8,3195.7,0.31305]
[1736872222908,0.5342,3195.9,3195.8,0.31305]
[1736872223109,0.5342,3195.9,3195.8,41.11305]
[1736872223315,0.5342,3195.9,3195.8,44.32085]
[1736872223511,0.84724,3195.9,3195.8,44.0078]
[1736872223709,0.84724,3195.9,3195.8,3.2078]
[1736872224318,0.84724,3195.9,3195.8,44.32085]
[1736872224519,0.84724,3195.9,3195.8,40.8]
[1736872225613,0.84724,3195.9,3195.8,41.11305]
[1736872227317,0.84724,3195.9,3195.8,40.8]
[1736872228917,0.5342,3195.9,3195.8,41.11305]
[1736872229317,0.5489,3196.1,3196.0,0.31303]
[1736872229520,0.8206,3196.4,3196.3,0.313]
[1736872230018,9.0095025,3196.4,3196.3,0.313]
[1736872230222,9.3224925,3196.4,3196.3,0.313]
[1736872230621,9.0095025,3196.4,3196.3,0.313]
[1736872230925,0.82059,3196.4,3196.3,0.313]
[1736872231121,3.81708621,3196.4,3195.8,44.0078]
[1736872231423,0.31304,3195.9,3195.8,44.0078]
[1736872231618,0.31304,3195.9,3195.8,44.32085]
[1736872231822,0.31304,3195.9,3195.8,44.0078]
[1736872232221,0.31304,3195.9,3195.8,40.8]
[1736872233422,6.9307872,3195.9,3195.8,40.8]
[1736872233624,11.6177472,3195.9,3194.4,3.2078]
[1736872233820,3.2078,3195.0,3194.5,0.31317]
[1736872234123,1.0457,3195.8,3194.8,0.31314]
[1736872234124,1.0505,3194.9,3194.8,0.31314]
[1736872234527,0.5324,3194.9,3194.8,41.11314]
[1736872234920,0.3131,3195.3,3195.2,0.3131]
[1736872235223,3.2078,3195.4,3195.3,0.3131]
[1736872235224,0.84549,3195.4,3195.3,0.3131]
[1736872235420,3.7354,3195.8,3195.3,3.2078]
[1736872235628,3.2078,3195.8,3195.7,0.31306]
[1736872235928,7.07281509,3196.1,3195.4,0.525]
[1736872236227,0.31309,3195.4,3195.3,3.2078]
[1736872236428,7.40075066,3195.8,3195.3,3.2078]
[1736872236625,6.05875066,3195.8,3195.7,0.31306]
[1736872236821,6.05875066,3195.8,3195.7,44.32086]
[1736872237016,6.37180066,3195.8,3195.7,40.8]
[1736872237327,0.31305,3195.8,3195.7,40.8]
[1736872237824,6.59625066,3195.9,3195.7,40.8]
[1736872238026,6.05875066,3195.9,3195.8,0.31305]
[1736872238327,0.84543,3196.0,3195.9,0.31304]
[1736872238528,0.5324,3196.0,3195.9,0.31304]
[1736872238728,0.84543,3196.0,3195.9,0.31304]
[1736872239621,0.5324,3196.0,3195.9,0.31304]
[1736872240124,0.84543,3196.0,3195.9,0.31304]
[1736872240331,0.5324,3196.0,3195.9,0.31304]
[1736872240524,0.84543,3196.0,3195.9,0.31304]
[1736872240724,0.5324,3196.0,3195.9,0.31304]
[1736872241216,0.84543,3196.0,3195.9,0.31304]
[1736872241925,5.6909179,3196.0,3195.9,0.31304]
[1736872242424,0.31305,3195.9,3195.8,0.31304]
[1736872243025,6.05702283,3196.1,3195.7,44.0078]
[1736872243227,6.37005283,3196.1,3196.0,0.31303]
[1736872243527,0.31305,3195.8,3195.7,40.8]
[1736872243917,0.31305,3195.8,3195.3,3.2078]
[1736872243918,0.31309,3195.4,3195.3,0.31309]
[1736872244317,0.31309,3195.4,3195.3,41.11309]
[1736872245226,0.31309,3195.4,3195.3,40.8]
[1736872245430,0.31309,3195.4,3195.3,41.1131]
[1736872246033,1.0459,3195.7,3195.3,44.0078]
[1736872246332,0.31304,3195.9,3195.8,0.31304]
[1736872246932,3.7444,3196.1,3195.4,5.02632509]
[1736872246933,3.7444,3196.1,3196.0,0.31303]
[1736872247128,0.5366,3196.1,3196.0,0.31303]
[1736872247621,0.84962,3196.1,3196.0,41.11303]
[1736872248326,0.5366,3196.1,3196.0,41.11303]
[1736872249034,7.26942806,3196.4,3196.0,44.11641509]
[1736872249035,7.58241806,3196.4,3196.0,44.11641509]
[1736872249233,0.31301,3196.2,3196.1,0.31302]
[1736872249430,0.31302,3196.1,3196.0,40.8]
[1736872249729,8.16722875,3196.1,3195.4,3.2078]
[1736872250032,0.518,3196.0,3195.4,3.2078]
[1736872250226,0.5074,3195.9,3195.5,40.8]
[1736872250425,0.31305,3195.8,3195.7,0.31305]
[1736872250626,0.5074,3195.9,3195.5,44.11641509]
[1736872250835,0.5074,3195.9,3195.8,3.52085]
[1736872251021,7.78742806,3196.3,3195.8,3.2078]
[1736872251227,0.31304,3195.9,3195.8,0.31304]
[1736872251627,0.31303,3196.0,3195.9,0.31303]
[1736872252531,0.31302,3196.1,3196.0,0.31302]
[1736872252727,0.5074,3196.2,3195.9,3.31641509]
[1736872252933,0.82041,3196.2,3196.1,0.31302]
[1736872253333,9.3223125,3196.2,3196.1,0.31302]
[1736872253534,12.28250116,3196.2,3195.6,3.2078]
[1736872253734,0.78257,3196.0,3195.5,40.8]
[1736872253930,0.31307,3195.6,3195.5,40.8]
[1736872256537,0.31307,3195.6,3195.5,41.11308]
[1736872256840,0.31307,3195.6,3195.5,40.8]
[1736872258134,0.31311,3195.2,3195.1,3.2078]
[1736872258335,0.31311,3195.2,3195.0,0.31312]
[1736872258336,0.31315,3194.8,3194.7,0.31314]
[1736872258535,0.31315,3194.7,3194.6,3.2078]
[1736872258739,0.31315,3194.7,3194.1,0.78303]
[1736872258740,0.78287,3194.8,3194.1,3.2078]
[1736872259034,0.3132,3194.2,3194.1,3.521]
[1736872259443,3.74309,3194.7,3194.1,3.521]
[1736872259444,3.74309,3194.7,3194.1,3.2078]
[1736872259734,0.31319,3194.4,3194.3,0.31319]
[1736872260136,0.31319,3194.3,3194.2,40.8]
[1736872261337,9.95333077,3194.4,3194.3,0.31319]
[1736872261736,9.64014077,3194.4,3194.3,0.31319]
[1736872262842,9.64014077,3194.4,3194.2,40.8]
[1736872263042,0.31319,3194.4,3194.3,0.31319]
[1736872263241,7.29699472,3194.5,3194.4,0.31318]
[1736872264043,7.29699472,3194.7,3194.6,0.31316]
[1736872264240,7.29699472,3194.7,3194.6,3.52096]
[1736872264450,8.5131605,3194.9,3194.6,8.40597836]
[1736872264746,0.5535,3195.7,3194.8,5.74141509]
[1736872264941,0.31308,3195.5,3195.4,0.31308]
[1736872265135,0.31307,3195.6,3195.5,0.31307]
[1736872265342,0.86656,3195.7,3195.6,0.31307]
[1736872265942,0.5535,3195.7,3195.6,41.11307]
[1736872266841,0.86656,3195.7,3195.6,41.11307]
[1736872267048,0.86656,3195.7,3195.6,40.8]
[1736872267244,3.98088516,3195.7,3194.6,3.2078]
[1736872267451,3.2078,3195.3,3194.6,3.2078]
[1736872267647,0.31314,3194.9,3194.8,0.31314]
[1736872267950,0.5506,3195.2,3195.1,0.31311]
[1736872268156,1.349,3195.5,3194.8,40.8]
[1736872268157,0.31309,3195.4,3195.3,0.31309]
[1736872268453,0.31309,3195.4,3195.0,6.52421509]
[1736872268454,0.3131,3195.3,3195.2,0.3131]
[1736872268747,0.31311,3195.1,3194.9,0.31313]
[1736872268938,0.31313,3194.9,3194.8,41.11314]
[1736872269249,1.0893,3195.0,3194.8,40.8]
[1736872269442,1.40243,3195.0,3194.9,0.31313]
[1736872270350,0.31313,3194.9,3194.8,41.11314]
[1736872270547,0.31313,3194.9,3194.8,40.8]
[1736872270847,4.80068037,3195.0,3194.8,40.8]
[1736872271148,3.7567,3195.8,3194.9,0.31313]
[1736872271351,0.5486,3195.7,3195.6,0.31306]
[1736872271652,0.86166,3195.7,3195.6,0.31306]
[1736872271852,0.31309,3195.5,3195.4,0.31308]
[1736872272245,0.31309,3195.4,3195.3,0.31308]
[1736872272952,0.5486,3195.7,3195.1,3.2078]
[1736872273139,0.86166,3195.7,3195.6,0.31307]
[1736872273653,0.5486,3195.7,3195.6,0.31307]
[1736872273950,0.5486,3195.7,3195.6,3.62948509]
[1736872274144,8.51485846,3195.8,3195.7,0.31306]
[1736872274448,10.94767516,3196.2,3196.1,0.31302]
[1736872274750,10.94767516,3196.2,3196.1,6.83723509]
[1736872275345,6.08604845,3196.2,3196.1,6.83723509]
[1736872275644,6.08604845,3196.2,3196.1,12.03535155]
[1736872275957,6.08604845,3196.2,3196.1,12.03534774]
[1736872276148,6.08604845,3196.6,3196.5,0.31298]
[1736872276347,6.08604845,3196.6,3196.5,3.52078]
[1736872276550,6.08604845,3196.6,3196.5,0.31298]
[1736872277048,0.5282,3197.0,3196.1,7.30674509]
[1736872277354,0.31295,3196.8,3196.7,0.31295]
[1736872277551,0.31297,3196.7,3196.5,0.31297]
[1736872277749,0.84114,3197.0,3196.5,6.52421509]
[1736872277949,0.84114,3197.0,3196.9,0.31294]
[1736872278446,0.31295,3196.9,3196.7,40.8]
[1736872278651,0.5282,3197.0,3196.7,40.8]
[1736872278853,0.31295,3196.8,3196.7,41.11295]
[1736872279159,0.31295,3196.9,3196.8,0.31294]
[1736872279749,0.5282,3197.0,3196.9,0.31294]
[1736872280155,0.84113,3197.0,3196.9,0.31294]
[1736872280553,0.5282,3197.0,3196.9,0.31294]
[1736872281058,10.25946681,3197.0,3196.9,0.31294]
[1736872281656,10.25946681,3197.0,3196.9,0.35334]
[1736872282047,0.5282,3197.0,3196.9,0.35334]
[1736872282252,12.93906681,3197.2,3197.1,0.31292]
[1736872283255,3.2078,3197.2,3197.1,0.31292]
[1736872283950,3.2078,3197.2,3196.7,40.8]
[1736872284152,6.70779554,3197.2,3196.5,3.2078]
[1736872284353,3.2078,3196.8,3195.6,6.52421509]
[1736872284648,0.31306,3195.8,3195.7,40.8]
[1736872285054,0.78265,3195.7,3195.1,0.31311]
[1736872285250,0.78272,3195.4,3194.6,0.31315]
[1736872285452,0.78272,3195.4,3194.3,8.11623228]
[1736872285453,3.2078,3195.0,3194.7,40.8]
[1736872285654,4.66872758,3195.3,3194.7,40.8]
[1736872285851,1.348,3195.3,3194.8,0.31314]
[1736872286050,3.2078,3195.4,3194.8,6.52421509]
[1736872286258,13.42702643,3195.7,3195.1,3.31641509]
[1736872286564,13.74008643,3195.7,3195.6,0.31307]
[1736872286762,13.74008643,3195.7,3195.4,3.31641509]
[1736872286763,13.74008643,3195.7,3195.5,0.31307]
[1736872287057,13.74008643,3195.7,3195.6,0.31307]
[1736872287357,1.348,3195.7,3195.6,0.31307]
[1736872287563,0.31305,3195.8,3195.4,3.31641509]
[1736872287763,0.31305,3195.8,3195.7,0.31306]
[1736872287955,0.31305,3195.8,3195.7,40.8]
[1736872288462,3.92346295,3195.8,3195.7,40.8]
[1736872288659,0.31305,3195.8,3195.7,40.8]
[1736872289157,5.18734,3195.9,3195.7,41.11305]
[1736872290661,5.18734,3195.9,3195.8,0.31305]
[1736872290860,4.3076,3195.9,3195.8,0.31305]
[1736872291457,3.7589,3195.9,3195.8,0.31305]
[1736872291653,3.2078,3195.9,3195.8,0.31305]
[1736872291952,7.28341496,3196.2,3196.1,0.31302]
[1736872292157,0.5537,3196.4,3196.3,0.313]
[1736872292361,0.86669,3196.4,3196.3,0.313]
[1736872292661,0.86669,3196.4,3196.3,41.113]
[1736872292865,0.86669,3196.4,3196.3,40.8]
[1736872293065,6.94074806,3196.4,3196.3,40.8]
[1736872293458,6.62775806,3196.4,3196.3,41.113]
[1736872293660,6.07405806,3196.4,3196.3,41.113]
[1736872294271,6.07405806,3196.4,3196.3,44.42941509]
[1736872295270,1.0699,3196.6,3196.5,0.31298]
[1736872295663,0.5219,3196.6,3196.5,0.31298]
[1736872295959,6.07405806,3196.8,3196.3,44.11641509]
[1736872296160,6.07405806,3196.8,3196.7,0.31296]
[1736872297273,9.28185806,3197.0,3196.3,40.8]
[1736872297458,3.2078,3196.6,3195.7,3.31641509]
[1736872297666,0.31299,3196.4,3196.2,0.313]
[1736872297868,0.5423,3196.3,3196.2,0.313]
[1736872298064,0.5423,3196.3,3196.2,41.113]
[1736872298266,6.61635806,3196.3,3196.2,41.113]
[1736872298768,6.92935806,3196.3,3196.2,40.8]
[1736872298968,0.31303,3196.0,3195.8,0.31304]
[1736872299373,0.31303,3196.0,3195.9,40.8]
[1736872299663,6.61635806,3196.3,3195.9,41.11304]
[1736872299870,0.31302,3196.1,3195.9,41.11304]
[1736872300070,0.31302,3196.1,3196.0,0.31303]
[1736872300377,6.61635806,3196.3,3195.9,40.8]
[1736872300378,3.2078,3196.2,3195.9,40.8]
[1736872300572,0.31303,3196.0,3195.9,40.8]
[1736872300868,0.7827,3195.5,3194.6,6.52421509]
[1736872301070,3.2078,3195.3,3194.6,6.52421509]
[1736872301270,0.31311,3195.2,3195.0,0.31312]
[1736872301467,3.5209,3195.3,3194.9,3.31641509]
[1736872301673,0.31313,3195.0,3194.9,0.31313]
[1736872301869,3.2078,3195.3,3194.8,40.8]
[1736872302473,0.31312,3195.1,3195.0,0.31312]
[1736872302666,6.38913426,3195.1,3195.0,0.31312]
[1736872302971,6.38912426,3195.1,3195.0,0.31312]
[1736872303368,0.31312,3195.1,3195.0,0.31312]
[1736872303571,0.31311,3195.2,3194.9,0.31313]
[1736872303774,3.2078,3195.3,3194.8,40.8]
[1736872304065,3.2078,3195.3,3195.1,0.31311]
[1736872304368,0.31311,3195.2,3194.8,40.8]
[1736872304565,0.31311,3195.2,3195.0,0.31312]
[1736872305065,3.2078,3195.3,3195.0,0.31312]
[1736872305265,0.31311,3195.2,3195.0,0.31312]
[1736872305473,3.5209,3195.3,3195.2,0.31311]
[1736872305967,0.31311,3195.2,3195.1,0.31311]
[1736872306168,3.2078,3195.3,3194.9,3.31641509]
[1736872306376,3.2078,3195.3,3195.2,0.31311]
[1736872306866,1.35789,3195.4,3194.9,3.31641509]
[1736872306867,1.0448,3195.4,3195.3,0.3131]
[1736872307068,1.0448,3195.4,3193.3,2.425]
[1736872307069,1.0448,3195.4,3194.6,3.31641509]
[1736872307273,0.31315,3194.8,3194.6,0.31316]
[1736872307463,3.2078,3195.1,3194.5,3.2078]
[1736872307665,3.2078,3195.1,3194.6,3.31641509]
[1736872307867,3.2078,3195.1,3195.0,0.31312]
[1736872308070,1.35789,3195.4,3195.2,0.3131]
[1736872308272,1.0448,3195.4,3195.3,0.3131]
[1736872308575,0.3131,3195.3,3195.1,0.31311]
[1736872308867,0.3131,3195.3,3195.2,41.1131]
[1736872309072,8.64130496,3195.4,3195.3,0.3131]
[1736872309270,8.32821496,3195.4,3195.3,0.3131]
[1736872309875,7.81241496,3195.4,3195.3,0.3131]
[1736872310169,13.47596681,3195.9,3195.7,0.31306]
[1736872310170,7.28341496,3195.8,3195.7,0.31306]
[1736872310476,7.59646496,3195.8,3195.7,0.31306]
[1736872310664,7.59646496,3195.8,3195.5,3.31641509]
[1736872310868,7.59646496,3195.8,3195.6,0.31306]
[1736872311175,7.28341496,3195.8,3195.7,41.11306]
[1736872311370,0.84994,3195.9,3195.8,0.31305]
[1736872311569,0.31305,3195.8,3195.7,41.11305]
[1736872311868,0.5369,3195.9,3195.7,41.11305]
[1736872311869,0.84994,3195.9,3195.8,0.31305]
[1736872312066,0.5369,3195.9,3195.7,40.8]
[1736872312570,0.84994,3195.9,3195.8,0.31305]
[1736872312771,0.5369,3195.9,3195.7,40.8]
[1736872312971,0.84994,3195.9,3195.8,0.31305]
[1736872313466,0.31305,3195.8,3195.7,41.11305]
[1736872313666,0.84995,3195.9,3195.8,0.31305]
[1736872314269,8.63441496,3196.0,3195.9,0.31304]